[Event "Titled Tuesday Blitz May 2 Late 2023"]
[White "Bruedigam, Martin"]
[Black "Haszon, David"]
[WhiteFideId "24608033"]
[BlackFideId "733610"]
[WhiteElo "2331"]
[BlackElo "2210"]
[Result "1/2-1/2"]
[Round "03"]
[TimeControl "180+2"]
[Date "2023.05.02"]
[WhiteClock "0:00:09"]
[BlackClock "0:00:07"]

1. d4 {[%clk 0:03:00]}  Nf6 {[%clk 0:02:59]} 2. c4 {[%clk 0:03:01]}  e6 {[%clk 0:03:00]} 3. Nc3 {[%clk 0:03:00]}  d5 {[%clk 0:03:00]} 4. cxd5 {[%clk 0:03:00]}  exd5 {[%clk 0:03:00]} 5. Bg5 {[%clk 0:03:00]}  Nbd7 {[%clk 0:02:59]} 6. e3 {[%clk 0:03:00]}  c6 {[%clk 0:02:58]} 7. Bd3 {[%clk 0:03:00]}  Be7 {[%clk 0:02:59]} 8. Qc2 {[%clk 0:02:48]}  O-O {[%clk 0:02:53]} 9. h3 {[%clk 0:02:40]}  Re8 {[%clk 0:02:43]} 10. Nf3 {[%clk 0:02:38]}  h6 {[%clk 0:02:40]} 11. Bf4 {[%clk 0:02:38]}  a5 {[%clk 0:02:32]} 12. O-O {[%clk 0:02:34]}  Bb4 {[%clk 0:02:22]} 13. Ne5 {[%clk 0:02:16]}  Nxe5 {[%clk 0:02:16]} 14. Bxe5 {[%clk 0:02:17]}  Nd7 {[%clk 0:02:01]} 15. Bf4 {[%clk 0:02:10]}  Nf6 {[%clk 0:02:01]} 16. Be5 {[%clk 0:02:02]}  Nd7 {[%clk 0:02:00]} 17. Bg3 {[%clk 0:02:02]}  Nf6 {[%clk 0:01:56]} 18. Rab1 {[%clk 0:01:55]}  Bxc3 {[%clk 0:01:49]} 19. bxc3 {[%clk 0:01:53]}  Ne4 {[%clk 0:01:50]} 20. Bh2 {[%clk 0:01:50]}  Nd6 {[%clk 0:01:22]} 21. Bxd6 {[%clk 0:01:44]}  Qxd6 {[%clk 0:01:22]} 22. c4 {[%clk 0:01:45]}  Be6 {[%clk 0:01:13]} 23. Rxb7 {[%clk 0:01:38]}  Reb8 {[%clk 0:00:57]} 24. Rfb1 {[%clk 0:01:34]}  Rxb7 {[%clk 0:00:52]} 25. Rxb7 {[%clk 0:01:35]}  a4 {[%clk 0:00:38]} 26. c5 {[%clk 0:01:30]}  Qd8 {[%clk 0:00:38]} 27. a3 {[%clk 0:01:29]}  Qg5 {[%clk 0:00:37]} 28. Kf1 {[%clk 0:01:27]}  Qd8 {[%clk 0:00:25]} 29. Rb6 {[%clk 0:01:24]}  Qc7 {[%clk 0:00:25]} 30. Kg1 {[%clk 0:01:21]}  g5 {[%clk 0:00:23]} 31. Qd1 {[%clk 0:01:15]}  Kg7 {[%clk 0:00:23]} 32. Qf3 {[%clk 0:01:01]}  Rb8 {[%clk 0:00:21]} 33. Qg3 {[%clk 0:00:56]}  Qxg3 {[%clk 0:00:16]} 34. fxg3 {[%clk 0:00:56]}  Rc8 {[%clk 0:00:12]} 35. Ba6 {[%clk 0:00:54]}  Rc7 {[%clk 0:00:12]} 36. Rb4 {[%clk 0:00:46]}  Ra7 {[%clk 0:00:12]} 37. Rxa4 {[%clk 0:00:43]}  Bd7 {[%clk 0:00:13]} 38. g4 {[%clk 0:00:34]}  Kf6 {[%clk 0:00:07]} 39. Kf2 {[%clk 0:00:32]}  Ke7 {[%clk 0:00:08]} 40. Ke2 {[%clk 0:00:18]}  Ra8 {[%clk 0:00:08]} 41. Kd2 {[%clk 0:00:18]}  Rb8 {[%clk 0:00:08]} 42. Kc2 {[%clk 0:00:18]}  f5 {[%clk 0:00:07]} 43. gxf5 {[%clk 0:00:16]}  Bxf5+ {[%clk 0:00:08]} 44. Bd3 {[%clk 0:00:14]}  Bd7 {[%clk 0:00:06]} 45. Ra7 {[%clk 0:00:14]}  Rf8 {[%clk 0:00:06]} 46. a4 {[%clk 0:00:12]}  Rf2+ {[%clk 0:00:07]} 47. Kc3 {[%clk 0:00:13]}  Ra2 {[%clk 0:00:07]} 48. a5 {[%clk 0:00:13]}  Ke6 {[%clk 0:00:06]} 49. a6 {[%clk 0:00:13]}  Ra3+ {[%clk 0:00:06]} 50. Kd2 {[%clk 0:00:13]}  Ra2+ {[%clk 0:00:07]} 51. Ke1 {[%clk 0:00:13]}  Ra1+ {[%clk 0:00:07]} 52. Kf2 {[%clk 0:00:14]}  h5 {[%clk 0:00:07]} 53. Be2 {[%clk 0:00:11]}  Ra2 {[%clk 0:00:04]} 54. Ra8 {[%clk 0:00:12]}  g4 {[%clk 0:00:03]} 55. hxg4 {[%clk 0:00:12]}  hxg4 {[%clk 0:00:04]} 56. g3 {[%clk 0:00:12]}  Kf6 {[%clk 0:00:04]} 57. Rd8 {[%clk 0:00:11]}  Bf5 {[%clk 0:00:04]} 58. Ke1 {[%clk 0:00:10]}  Ra1+ {[%clk 0:00:04]} 59. Kf2 {[%clk 0:00:10]}  Ra2 {[%clk 0:00:05]} 60. Rf8+ {[%clk 0:00:10]}  Kg5 {[%clk 0:00:05]} 61. Rg8+ {[%clk 0:00:09]}  Kf6 {[%clk 0:00:06]} 62. Rf8+ {[%clk 0:00:08]}  Kg5 {[%clk 0:00:06]} 63. Kf1 {[%clk 0:00:08]}  Ra1+ {[%clk 0:00:06]} 64. Kg2 {[%clk 0:00:08]}  Ra2 {[%clk 0:00:07]} 65. Kf1 {[%clk 0:00:08]}  Ra1+ {[%clk 0:00:07]} 66. Kf2 {[%clk 0:00:09]}  Ra2 {[%clk 0:00:07]} 1/2-1/2


[Site "https://www.chess.com"]

[Event "Titled Tuesday Blitz May 2 Late 2023"]
[White "Seletsky, Grigory"]
[Black "Lee, Linden"]
[WhiteFideId "14112191"]
[BlackFideId "30941830"]
[WhiteElo "2490"]
[BlackElo "1985"]
[Result "0-1"]
[Round "03"]
[TimeControl "180+2"]
[Date "2023.05.02"]
[WhiteClock "0:00:01"]
[BlackClock "0:00:42"]

1. c3 {[%clk 0:02:58]}  c5 {[%clk 0:02:58]} 2. d4 {[%clk 0:02:58]}  Nf6 {[%clk 0:02:55]} 3. Nf3 {[%clk 0:02:57]}  g6 {[%clk 0:02:54]} 4. Bf4 {[%clk 0:02:55]}  Bg7 {[%clk 0:02:54]} 5. e3 {[%clk 0:02:55]}  O-O {[%clk 0:02:52]} 6. h3 {[%clk 0:02:56]}  Qb6 {[%clk 0:02:51]} 7. Qb3 {[%clk 0:02:54]}  d5 {[%clk 0:02:51]} 8. Nbd2 {[%clk 0:02:53]}  Nc6 {[%clk 0:02:51]} 9. Be2 {[%clk 0:02:51]}  h6 {[%clk 0:02:49]} 10. O-O {[%clk 0:02:50]}  g5 {[%clk 0:02:49]} 11. Bh2 {[%clk 0:02:50]}  Bf5 {[%clk 0:02:49]} 12. a3 {[%clk 0:02:44]}  Be6 {[%clk 0:02:39]} 13. Qxb6 {[%clk 0:02:35]}  axb6 {[%clk 0:02:39]} 14. Rac1 {[%clk 0:02:33]}  Bf5 {[%clk 0:02:37]} 15. Bd1 {[%clk 0:02:27]}  Bd3 {[%clk 0:02:35]} 16. Re1 {[%clk 0:02:27]}  Rfc8 {[%clk 0:02:34]} 17. Bc2 {[%clk 0:02:27]}  Bxc2 {[%clk 0:02:33]} 18. Rxc2 {[%clk 0:02:27]}  e6 {[%clk 0:02:32]} 19. Kf1 {[%clk 0:02:26]}  Nd7 {[%clk 0:02:31]} 20. Rcc1 {[%clk 0:02:23]}  b5 {[%clk 0:02:24]} 21. dxc5 {[%clk 0:02:20]}  Nxc5 {[%clk 0:02:24]} 22. Red1 {[%clk 0:02:19]}  Nd3 {[%clk 0:02:22]} 23. Rb1 {[%clk 0:02:19]}  Na5 {[%clk 0:02:22]} 24. Ne1 {[%clk 0:02:17]}  Nc5 {[%clk 0:02:20]} 25. b4 {[%clk 0:02:14]}  Na4 {[%clk 0:02:20]} 26. bxa5 {[%clk 0:02:13]}  Nxc3 {[%clk 0:02:21]} 27. Rdc1 {[%clk 0:02:08]}  Nxb1 {[%clk 0:02:20]} 28. Rxb1 {[%clk 0:01:57]}  Rxa5 {[%clk 0:02:19]} 29. Bd6 {[%clk 0:01:55]}  Bc3 {[%clk 0:02:17]} 30. Nb3 {[%clk 0:01:49]}  Ra6 {[%clk 0:02:17]} 31. Bc5 {[%clk 0:01:34]}  b6 {[%clk 0:02:04]} 32. Bb4 {[%clk 0:01:32]}  Bxb4 {[%clk 0:02:03]} 33. axb4 {[%clk 0:01:33]}  Ra4 {[%clk 0:01:57]} 34. Nd3 {[%clk 0:01:23]}  Rc3 {[%clk 0:01:53]} 35. Nbc1 {[%clk 0:01:20]}  f6 {[%clk 0:01:51]} 36. Ke1 {[%clk 0:01:15]}  Kf7 {[%clk 0:01:46]} 37. Kd2 {[%clk 0:01:15]}  Rc4 {[%clk 0:01:44]} 38. f4 {[%clk 0:01:11]}  Ke7 {[%clk 0:01:40]} 39. Nb3 {[%clk 0:01:10]}  Ra2+ {[%clk 0:01:39]} 40. Kd1 {[%clk 0:01:06]}  Rxg2 {[%clk 0:01:38]} 41. Nd4 {[%clk 0:01:00]}  Rc3 {[%clk 0:01:33]} 42. Ne1 {[%clk 0:00:57]}  Rh2 {[%clk 0:01:30]} 43. Ra1 {[%clk 0:00:50]}  Rxe3 {[%clk 0:01:25]} 44. Ra7+ {[%clk 0:00:50]}  Kf8 {[%clk 0:01:25]} 45. f5 {[%clk 0:00:43]}  exf5 {[%clk 0:01:22]} 46. Nxf5 {[%clk 0:00:30]}  Re5 {[%clk 0:01:21]} 47. Nd4 {[%clk 0:00:25]}  Rxh3 {[%clk 0:01:16]} 48. Rb7 {[%clk 0:00:08]}  Re4 {[%clk 0:01:10]} 49. Ndc2 {[%clk 0:00:07]}  d4 {[%clk 0:01:03]} 50. Rd7 {[%clk 0:00:05]}  Rb3 {[%clk 0:00:54]} 51. Kd2 {[%clk 0:00:03]}  h5 {[%clk 0:00:48]} 52. Nxd4 {[%clk 0:00:02]}  Rxb4 {[%clk 0:00:47]} 53. Nec2 {[%clk 0:00:02]}  Rc4 {[%clk 0:00:45]} 54. Kd3 {[%clk 0:00:01]}  Re7 {[%clk 0:00:45]} 55. Rd8+ {[%clk 0:00:01]}  Kf7 {[%clk 0:00:45]} 56. Rd6 {[%clk 0:00:02]}  Rc5 {[%clk 0:00:44]} 57. Rxb6 {[%clk 0:00:01]}  h4 {[%clk 0:00:43]} 58. Ne3 {[%clk 0:00:01]}  h3 {[%clk 0:00:42]} 59. Nef5 {[%clk 0:00:01]}  h2 {[%clk 0:00:42]} 0-1


[Site "https://www.chess.com"]

[Event "Titled Tuesday Blitz May 2 Late 2023"]
[White "Koziorowicz, Michal"]
[Black "Miszler, Levente"]
[WhiteFideId "21809194"]
[BlackFideId "763276"]
[WhiteElo "2255"]
[BlackElo "2176"]
[Result "1-0"]
[Round "03"]
[TimeControl "180+2"]
[Date "2023.05.02"]
[WhiteClock "0:01:08"]
[BlackClock "0:00:24"]

1. e4 {[%clk 0:03:00]}  e5 {[%clk 0:02:55]} 2. Nf3 {[%clk 0:03:00]}  Nc6 {[%clk 0:02:55]} 3. Bb5 {[%clk 0:02:58]}  a6 {[%clk 0:02:54]} 4. Ba4 {[%clk 0:02:58]}  b5 {[%clk 0:02:44]} 5. Bb3 {[%clk 0:02:57]}  Nf6 {[%clk 0:02:40]} 6. O-O {[%clk 0:02:57]}  Be7 {[%clk 0:02:37]} 7. Re1 {[%clk 0:02:56]}  O-O {[%clk 0:02:36]} 8. c3 {[%clk 0:02:56]}  d5 {[%clk 0:02:26]} 9. exd5 {[%clk 0:02:52]}  Nxd5 {[%clk 0:02:27]} 10. Nxe5 {[%clk 0:02:52]}  Nxe5 {[%clk 0:02:21]} 11. Rxe5 {[%clk 0:02:53]}  Bb7 {[%clk 0:02:18]} 12. d4 {[%clk 0:02:48]}  Bf6 {[%clk 0:02:00]} 13. Re1 {[%clk 0:02:36]}  Re8 {[%clk 0:01:59]} 14. Nd2 {[%clk 0:02:34]}  Nf4 {[%clk 0:01:48]} 15. Nf3 {[%clk 0:02:22]}  Rxe1+ {[%clk 0:01:47]} 16. Nxe1 {[%clk 0:02:21]}  Nxg2 {[%clk 0:01:42]} 17. Nxg2 {[%clk 0:02:19]}  c5 {[%clk 0:01:36]} 18. dxc5 {[%clk 0:02:11]}  Qe7 {[%clk 0:01:32]} 19. Bf4 {[%clk 0:01:49]}  Qe4 {[%clk 0:01:24]} 20. Qg4 {[%clk 0:01:49]}  h5 {[%clk 0:01:16]} 21. Qh3 {[%clk 0:01:41]}  Re8 {[%clk 0:01:03]} 22. Rf1 {[%clk 0:01:39]}  Qe2 {[%clk 0:00:59]} 23. Bd6 {[%clk 0:01:24]}  Bf3 {[%clk 0:00:55]} 24. Qd7 {[%clk 0:01:18]}  Re4 {[%clk 0:00:47]} 25. Bxf7+ {[%clk 0:01:11]}  Kh8 {[%clk 0:00:41]} 26. Qc8+ {[%clk 0:01:11]}  Kh7 {[%clk 0:00:40]} 27. Qf5+ {[%clk 0:01:10]}  Kh8 {[%clk 0:00:37]} 28. Bg6 {[%clk 0:01:09]}  Bg4 {[%clk 0:00:24]} 29. Qxe4 {[%clk 0:01:08]} 1-0


[Site "https://www.chess.com"]

[Event "Titled Tuesday Blitz May 2 Late 2023"]
[White "Gutkin, Ilya"]
[Black "Saveliev, Alexei"]
[WhiteFideId "16203470"]
[BlackFideId "24128546"]
[WhiteElo "2265"]
[BlackElo "2271"]
[Result "1-0"]
[Round "03"]
[TimeControl "180+2"]
[Date "2023.05.02"]
[WhiteClock "0:00:06"]
[BlackClock "0:00:04"]

1. Nf3 {[%clk 0:03:00]}  g6 {[%clk 0:02:59]} 2. d4 {[%clk 0:03:00]}  Bg7 {[%clk 0:03:00]} 3. e4 {[%clk 0:02:59]}  d6 {[%clk 0:03:00]} 4. c3 {[%clk 0:02:58]}  Nc6 {[%clk 0:03:00]} 5. d5 {[%clk 0:02:53]}  Nb8 {[%clk 0:02:56]} 6. Bd3 {[%clk 0:02:50]}  c5 {[%clk 0:02:55]} 7. c4 {[%clk 0:02:47]}  Nf6 {[%clk 0:02:54]} 8. Nc3 {[%clk 0:02:46]}  O-O {[%clk 0:02:50]} 9. h3 {[%clk 0:02:47]}  e6 {[%clk 0:02:50]} 10. O-O {[%clk 0:02:47]}  exd5 {[%clk 0:02:49]} 11. exd5 {[%clk 0:02:46]}  a6 {[%clk 0:02:42]} 12. a4 {[%clk 0:02:46]}  Bd7 {[%clk 0:02:25]} 13. Re1 {[%clk 0:02:42]}  Qc8 {[%clk 0:02:21]} 14. Qc2 {[%clk 0:02:39]}  Bxh3 {[%clk 0:01:59]} 15. gxh3 {[%clk 0:02:38]}  Qxh3 {[%clk 0:02:00]} 16. Nh2 {[%clk 0:02:33]}  Nbd7 {[%clk 0:01:54]} 17. Bf1 {[%clk 0:02:29]}  Qh4 {[%clk 0:01:50]} 18. Bg2 {[%clk 0:02:04]}  Ne5 {[%clk 0:01:49]} 19. Ne4 {[%clk 0:01:54]}  Nfg4 {[%clk 0:01:27]} 20. Nxg4 {[%clk 0:01:41]}  Nxg4 {[%clk 0:01:28]} 21. Bf4 {[%clk 0:01:36]}  Be5 {[%clk 0:01:28]} 22. Bg3 {[%clk 0:01:24]}  Bxg3 {[%clk 0:01:26]} 23. fxg3 {[%clk 0:01:24]}  Qh2+ {[%clk 0:01:23]} 24. Kf1 {[%clk 0:01:25]}  Rae8 {[%clk 0:01:21]} 25. Nf2 {[%clk 0:01:01]}  Qxg3 {[%clk 0:00:54]} 26. Nxg4 {[%clk 0:00:55]}  Qxg4 {[%clk 0:00:55]} 27. b3 {[%clk 0:00:40]}  h5 {[%clk 0:00:49]} 28. Qf2 {[%clk 0:00:34]}  h4 {[%clk 0:00:32]} 29. Qf3 {[%clk 0:00:26]}  Qd4 {[%clk 0:00:31]} 30. Rxe8 {[%clk 0:00:20]}  Rxe8 {[%clk 0:00:32]} 31. Re1 {[%clk 0:00:20]}  Rxe1+ {[%clk 0:00:27]} 32. Kxe1 {[%clk 0:00:21]}  Kg7 {[%clk 0:00:25]} 33. Ke2 {[%clk 0:00:17]}  Qb2+ {[%clk 0:00:22]} 34. Kf1 {[%clk 0:00:16]}  b6 {[%clk 0:00:21]} 35. Qd3 {[%clk 0:00:11]}  Qe5 {[%clk 0:00:18]} 36. Qe4 {[%clk 0:00:10]}  Qb2 {[%clk 0:00:17]} 37. Qd3 {[%clk 0:00:10]}  f5 {[%clk 0:00:16]} 38. Bf3 {[%clk 0:00:08]}  Qc1+ {[%clk 0:00:13]} 39. Kg2 {[%clk 0:00:07]}  Qf4 {[%clk 0:00:14]} 40. Be2 {[%clk 0:00:07]}  g5 {[%clk 0:00:10]} 41. Qf3 {[%clk 0:00:07]}  Qe5 {[%clk 0:00:11]} 42. Qh5 {[%clk 0:00:07]}  Qf6 {[%clk 0:00:08]} 43. Bf3 {[%clk 0:00:05]}  g4 {[%clk 0:00:06]} 44. Be2 {[%clk 0:00:04]}  Qg6 {[%clk 0:00:05]} 45. Qxh4 {[%clk 0:00:03]}  Qf7 {[%clk 0:00:03]} 46. Qg5+ {[%clk 0:00:03]}  Kh8 {[%clk 0:00:02]} 47. Qh6+ {[%clk 0:00:03]}  Kg8 {[%clk 0:00:03]} 48. Qxd6 {[%clk 0:00:02]}  Kg7 {[%clk 0:00:02]} 49. Qe5+ {[%clk 0:00:02]}  Kh7 {[%clk 0:00:03]} 50. Qe6 {[%clk 0:00:02]}  Qc7 {[%clk 0:00:03]} 51. Bd3 {[%clk 0:00:03]}  Kg7 {[%clk 0:00:02]} 52. Qxf5 {[%clk 0:00:03]}  Qe7 {[%clk 0:00:01]} 53. Qg6+ {[%clk 0:00:04]}  Kf8 {[%clk 0:00:01]} 54. Qf5+ {[%clk 0:00:04]}  Kg7 {[%clk 0:00:01]} 55. Qh7+ {[%clk 0:00:04]}  Kf6 {[%clk 0:00:02]} 56. Qxe7+ {[%clk 0:00:05]}  Kxe7 {[%clk 0:00:03]} 57. Kg3 {[%clk 0:00:06]}  b5 {[%clk 0:00:03]} 58. axb5 {[%clk 0:00:05]}  a5 {[%clk 0:00:04]} 59. Kxg4 {[%clk 0:00:06]} 1-0


[Site "https://www.chess.com"]

[Event "Titled Tuesday Blitz May 2 Late 2023"]
[White "Rafiee, Makan"]
[Black "Maze, Sebastien"]
[WhiteFideId "24609340"]
[BlackFideId "613762"]
[WhiteElo "2327"]
[BlackElo "2462"]
[Result "0-1"]
[Round "03"]
[TimeControl "180+2"]
[Date "2023.05.02"]
[WhiteClock "0:01:25"]
[BlackClock "0:01:04"]

1. e4 {[%clk 0:03:00]}  c5 {[%clk 0:02:54]} 2. Nf3 {[%clk 0:03:00]}  Nc6 {[%clk 0:02:53]} 3. d4 {[%clk 0:03:01]}  cxd4 {[%clk 0:02:54]} 4. Nxd4 {[%clk 0:03:01]}  g6 {[%clk 0:02:55]} 5. c4 {[%clk 0:03:01]}  Bg7 {[%clk 0:02:55]} 6. Nc2 {[%clk 0:03:01]}  Nf6 {[%clk 0:02:56]} 7. Nc3 {[%clk 0:03:02]}  d6 {[%clk 0:02:56]} 8. Be2 {[%clk 0:03:02]}  Nd7 {[%clk 0:02:56]} 9. Bd2 {[%clk 0:03:02]}  Nc5 {[%clk 0:02:55]} 10. b4 {[%clk 0:03:02]}  Ne6 {[%clk 0:02:52]} 11. O-O {[%clk 0:03:01]}  O-O {[%clk 0:02:52]} 12. Rc1 {[%clk 0:03:00]}  Ned4 {[%clk 0:02:51]} 13. Nxd4 {[%clk 0:02:59]}  Nxd4 {[%clk 0:02:51]} 14. Bg4 {[%clk 0:03:00]}  Bxg4 {[%clk 0:02:46]} 15. Qxg4 {[%clk 0:03:01]}  Rc8 {[%clk 0:02:46]} 16. Nd5 {[%clk 0:02:56]}  e6 {[%clk 0:02:31]} 17. Ne3 {[%clk 0:02:32]}  f5 {[%clk 0:02:30]} 18. exf5 {[%clk 0:02:30]}  gxf5 {[%clk 0:02:30]} 19. Qd1 {[%clk 0:02:30]}  f4 {[%clk 0:02:30]} 20. Ng4 {[%clk 0:02:11]}  h5 {[%clk 0:01:52]} 21. Bc3 {[%clk 0:02:10]}  e5 {[%clk 0:01:28]} 22. Bxd4 {[%clk 0:01:52]}  exd4 {[%clk 0:01:26]} 23. Nh6+ {[%clk 0:01:40]}  Bxh6 {[%clk 0:01:25]} 24. Qxd4 {[%clk 0:01:39]}  f3 {[%clk 0:01:13]} 25. Rc3 {[%clk 0:01:33]}  Qg5 {[%clk 0:01:08]} 26. g3 {[%clk 0:01:28]}  Bg7 {[%clk 0:01:07]} 27. Qe3 {[%clk 0:01:25]}  Qg4 {[%clk 0:01:04]} 0-1


[Site "https://www.chess.com"]

[Event "Titled Tuesday Blitz May 2 Late 2023"]
[White "Sai Han Thiha"]
[Black "Seemann, Jakub"]
[WhiteFideId "13012290"]
[BlackFideId "21874697"]
[WhiteElo "1954"]
[BlackElo "2364"]
[Result "0-1"]
[Round "03"]
[TimeControl "180+2"]
[Date "2023.05.02"]
[WhiteClock "0:00:01"]
[BlackClock "0:00:01"]

1. d4 {[%clk 0:03:00]}  Nf6 {[%clk 0:02:57]} 2. c4 {[%clk 0:03:01]}  c6 {[%clk 0:02:50]} 3. Nc3 {[%clk 0:03:01]}  d5 {[%clk 0:02:31]} 4. cxd5 {[%clk 0:03:02]}  cxd5 {[%clk 0:02:31]} 5. Bf4 {[%clk 0:03:02]}  Nc6 {[%clk 0:02:27]} 6. e3 {[%clk 0:03:03]}  a6 {[%clk 0:02:26]} 7. Nf3 {[%clk 0:03:03]}  e6 {[%clk 0:01:58]} 8. Bd3 {[%clk 0:03:01]}  Bd6 {[%clk 0:01:57]} 9. Bxd6 {[%clk 0:02:58]}  Qxd6 {[%clk 0:01:58]} 10. O-O {[%clk 0:02:58]}  O-O {[%clk 0:01:57]} 11. Rc1 {[%clk 0:02:58]}  b5 {[%clk 0:01:44]} 12. a4 {[%clk 0:02:41]}  b4 {[%clk 0:01:40]} 13. Nb1 {[%clk 0:02:41]}  Bd7 {[%clk 0:01:27]} 14. Nbd2 {[%clk 0:02:29]}  Rfc8 {[%clk 0:01:25]} 15. Nb3 {[%clk 0:02:25]}  Be8 {[%clk 0:01:12]} 16. Qe2 {[%clk 0:02:23]}  Ne7 {[%clk 0:01:05]} 17. Rxc8 {[%clk 0:02:18]}  Nxc8 {[%clk 0:01:06]} 18. Nc5 {[%clk 0:02:18]}  a5 {[%clk 0:00:59]} 19. Ne5 {[%clk 0:02:12]}  Nb6 {[%clk 0:00:55]} 20. b3 {[%clk 0:02:08]}  Nfd7 {[%clk 0:00:54]} 21. Qc2 {[%clk 0:01:23]}  h6 {[%clk 0:00:46]} 22. Ncxd7 {[%clk 0:01:09]}  Nxd7 {[%clk 0:00:47]} 23. f4 {[%clk 0:01:09]}  Nb6 {[%clk 0:00:43]} 24. Qc5 {[%clk 0:01:03]}  Qd8 {[%clk 0:00:38]} 25. f5 {[%clk 0:00:52]}  Rc8 {[%clk 0:00:35]} 26. Qxa5 {[%clk 0:00:51]}  f6 {[%clk 0:00:19]} 27. Nf3 {[%clk 0:00:13]}  Rc3 {[%clk 0:00:19]} 28. Bb5 {[%clk 0:00:11]}  Bxb5 {[%clk 0:00:18]} 29. Qxb5 {[%clk 0:00:11]}  Rxe3 {[%clk 0:00:09]} 30. fxe6 {[%clk 0:00:12]}  Rxe6 {[%clk 0:00:07]} 31. Qxb4 {[%clk 0:00:12]}  Rc6 {[%clk 0:00:05]} 32. Re1 {[%clk 0:00:12]}  Nc8 {[%clk 0:00:04]} 33. Qb5 {[%clk 0:00:11]}  Qc7 {[%clk 0:00:02]} 34. h3 {[%clk 0:00:10]}  Nd6 {[%clk 0:00:03]} 35. Qxd5+ {[%clk 0:00:09]}  Kh7 {[%clk 0:00:03]} 36. Qe6 {[%clk 0:00:08]}  Rc1 {[%clk 0:00:03]} 37. Rxc1 {[%clk 0:00:05]}  Qxc1+ {[%clk 0:00:04]} 38. Kf2 {[%clk 0:00:05]}  Qb2+ {[%clk 0:00:04]} 39. Kg3 {[%clk 0:00:04]}  Qa3 {[%clk 0:00:03]} 40. d5 {[%clk 0:00:03]}  Qb4 {[%clk 0:00:03]} 41. h4 {[%clk 0:00:03]}  Ne4+ {[%clk 0:00:03]} 42. Kh2 {[%clk 0:00:02]}  Nf2 {[%clk 0:00:03]} 43. Qf5+ {[%clk 0:00:03]}  Kg8 {[%clk 0:00:04]} 44. d6 {[%clk 0:00:02]}  Ng4+ {[%clk 0:00:03]} 45. Kg3 {[%clk 0:00:02]}  h5 {[%clk 0:00:03]} 46. d7 {[%clk 0:00:02]}  Qd6+ {[%clk 0:00:02]} 47. Ne5 {[%clk 0:00:01]}  Nxe5 {[%clk 0:00:01]} 0-1


[Site "https://www.chess.com"]

[Event "Titled Tuesday Blitz May 2 Late 2023"]
[White "Domingo Nunez, Ruben"]
[Black "Papayan, Oleg"]
[WhiteFideId "22245570"]
[BlackFideId "4193911"]
[WhiteElo "2404"]
[BlackElo "2153"]
[Result "1/2-1/2"]
[Round "03"]
[TimeControl "180+2"]
[Date "2023.05.02"]
[WhiteClock "0:00:05"]
[BlackClock "0:00:06"]

1. e4 {[%clk 0:03:00]}  d5 {[%clk 0:02:57]} 2. exd5 {[%clk 0:03:00]}  Qxd5 {[%clk 0:02:58]} 3. Nc3 {[%clk 0:03:01]}  Qa5 {[%clk 0:02:58]} 4. Bc4 {[%clk 0:03:01]}  Nf6 {[%clk 0:02:57]} 5. d3 {[%clk 0:03:01]}  a6 {[%clk 0:02:56]} 6. h3 {[%clk 0:03:00]}  b5 {[%clk 0:02:55]} 7. Qf3 {[%clk 0:03:00]}  c6 {[%clk 0:02:47]} 8. Bb3 {[%clk 0:03:00]}  Bb7 {[%clk 0:02:41]} 9. g4 {[%clk 0:02:59]}  h6 {[%clk 0:02:36]} 10. Ne2 {[%clk 0:02:53]}  Nbd7 {[%clk 0:02:33]} 11. Rg1 {[%clk 0:02:29]}  e6 {[%clk 0:02:18]} 12. Bd2 {[%clk 0:02:25]}  Qc7 {[%clk 0:02:12]} 13. h4 {[%clk 0:02:14]}  c5 {[%clk 0:02:04]} 14. Qh3 {[%clk 0:02:13]}  Ne5 {[%clk 0:01:46]} 15. Bf4 {[%clk 0:02:02]}  Bd6 {[%clk 0:01:33]} 16. Bxe5 {[%clk 0:02:01]}  Bxe5 {[%clk 0:01:34]} 17. O-O-O {[%clk 0:02:01]}  O-O-O {[%clk 0:01:23]} 18. Qe3 {[%clk 0:01:34]}  Rd4 {[%clk 0:01:03]} 19. f3 {[%clk 0:01:24]}  Bf4 {[%clk 0:00:37]} 20. Nxf4 {[%clk 0:01:22]}  Qxf4 {[%clk 0:00:38]} 21. Qxf4 {[%clk 0:01:15]}  Rxf4 {[%clk 0:00:39]} 22. g5 {[%clk 0:01:16]}  hxg5 {[%clk 0:00:27]} 23. Rxg5 {[%clk 0:01:14]}  Bxf3 {[%clk 0:00:10]} 24. Rf1 {[%clk 0:01:15]}  Rhxh4 {[%clk 0:00:06]} 25. Rxc5+ {[%clk 0:01:15]}  Kd7 {[%clk 0:00:06]} 26. a4 {[%clk 0:01:16]}  b4 {[%clk 0:00:05]} 27. Nb1 {[%clk 0:01:15]}  Bd5 {[%clk 0:00:04]} 28. Rg1 {[%clk 0:01:05]}  Bxb3 {[%clk 0:00:02]} 29. cxb3 {[%clk 0:01:06]}  g6 {[%clk 0:00:02]} 30. Ra5 {[%clk 0:01:05]}  Nd5 {[%clk 0:00:02]} 31. Nd2 {[%clk 0:01:03]}  Rh2 {[%clk 0:00:02]} 32. Ne4 {[%clk 0:00:59]}  Rf3 {[%clk 0:00:02]} 33. Rxa6 {[%clk 0:00:58]}  Ke7 {[%clk 0:00:03]} 34. Ra7+ {[%clk 0:00:57]}  Kf8 {[%clk 0:00:03]} 35. Ng5 {[%clk 0:00:17]}  Rxd3 {[%clk 0:00:03]} 36. Rxf7+ {[%clk 0:00:18]}  Ke8 {[%clk 0:00:03]} 37. Re1 {[%clk 0:00:13]}  Rxb3 {[%clk 0:00:02]} 38. Rxe6+ {[%clk 0:00:13]}  Kd8 {[%clk 0:00:03]} 39. Rd6+ {[%clk 0:00:14]}  Ke8 {[%clk 0:00:02]} 40. Rxd5 {[%clk 0:00:11]}  Rbxb2 {[%clk 0:00:03]} 41. Re5+ {[%clk 0:00:10]}  Kd8 {[%clk 0:00:03]} 42. Ne6+ {[%clk 0:00:09]}  Ke8 {[%clk 0:00:04]} 43. Ng5+ {[%clk 0:00:07]}  Kd8 {[%clk 0:00:05]} 44. Rf8+ {[%clk 0:00:04]}  Kd7 {[%clk 0:00:05]} 45. Rf7+ {[%clk 0:00:05]}  Kd8 {[%clk 0:00:06]} 1/2-1/2


[Site "https://www.chess.com"]

[Event "Titled Tuesday Blitz May 2 Late 2023"]
[White "Marek, Matyas"]
[Black "Toktomushev, Teimur"]
[WhiteFideId "335398"]
[BlackFideId "14176726"]
[WhiteElo "2279"]
[BlackElo "2116"]
[Result "1-0"]
[Round "03"]
[TimeControl "180+2"]
[Date "2023.05.02"]
[WhiteClock "0:01:01"]
[BlackClock "0:00:52"]

1. Nf3 {[%clk 0:03:00]}  d5 {[%clk 0:03:00]} 2. g3 {[%clk 0:03:01]}  Nf6 {[%clk 0:03:00]} 3. Bg2 {[%clk 0:03:02]}  e6 {[%clk 0:03:01]} 4. O-O {[%clk 0:03:03]}  Be7 {[%clk 0:03:02]} 5. d3 {[%clk 0:03:04]}  O-O {[%clk 0:03:02]} 6. Nbd2 {[%clk 0:03:05]}  c5 {[%clk 0:03:02]} 7. e4 {[%clk 0:03:06]}  Nc6 {[%clk 0:03:03]} 8. Re1 {[%clk 0:03:06]}  b5 {[%clk 0:03:03]} 9. e5 {[%clk 0:03:07]}  Nd7 {[%clk 0:03:03]} 10. Nf1 {[%clk 0:03:07]}  Qc7 {[%clk 0:02:59]} 11. Bf4 {[%clk 0:03:07]}  a5 {[%clk 0:03:00]} 12. h4 {[%clk 0:03:07]}  Ba6 {[%clk 0:02:59]} 13. h5 {[%clk 0:03:07]}  h6 {[%clk 0:02:59]} 14. N1h2 {[%clk 0:03:08]}  Rfc8 {[%clk 0:02:58]} 15. Ng4 {[%clk 0:03:08]}  Bf8 {[%clk 0:02:58]} 16. Qd2 {[%clk 0:03:08]}  Qd8 {[%clk 0:02:59]} 17. Rad1 {[%clk 0:02:35]}  b4 {[%clk 0:02:48]} 18. c4 {[%clk 0:02:34]}  bxc3 {[%clk 0:02:46]} 19. bxc3 {[%clk 0:02:35]}  Rab8 {[%clk 0:02:42]} 20. c4 {[%clk 0:02:35]}  Rb4 {[%clk 0:02:31]} 21. cxd5 {[%clk 0:02:26]}  exd5 {[%clk 0:02:32]} 22. e6 {[%clk 0:02:20]}  fxe6 {[%clk 0:02:31]} 23. Rxe6 {[%clk 0:02:20]}  Bb5 {[%clk 0:01:52]} 24. Nxh6+ {[%clk 0:01:45]}  gxh6 {[%clk 0:01:50]} 25. Rg6+ {[%clk 0:01:45]}  Kh8 {[%clk 0:01:43]} 26. Bxh6 {[%clk 0:01:46]}  Nde5 {[%clk 0:01:07]} 27. Bg5 {[%clk 0:01:13]}  Be7 {[%clk 0:00:54]} 28. Bf6+ {[%clk 0:01:01]}  Bxf6 {[%clk 0:00:52]} 29. Qh6# {[%clk 0:01:01]} 1-0


[Site "https://www.chess.com"]